{"text_format":"3","workbook":"xlsx","n_sheets":2,"sheets":["Fatura de cobrança","Informações da empresa"],"not_rendered":{"images":1,"defined_names":27},"read":"whole","date_system":"1900"}

{"sheet":"Fatura de cobrança","index":0,"n_rows":35,"n_cols":7,"rows_kept":35,"merged":[[1,1,1,2],[1,3,2,4],[1,6,2,6],[3,3,3,4],[4,3,4,4],[5,3,5,4],[23,1,23,3],[24,1,24,3],[25,1,25,3],[26,1,26,3],[34,1,34,4]]}
[null,"FATURA","0005"]
[null,{"$f":"TODAY()","v":"2018-07-13"},null,{"$f":"TotalDaFatura","v":159.3},null," ","Informações da empresa"]
[null,"DATA DE VENCIMENTO DO PAGAMENTO:",{"$f":"TODAY()+15","v":"2018-07-28"},null,null," "]
[null,"BRENDA FERNANDES",null,"ADVENTURE WORKS"]
[null,"Fabrikam, Inc.",null,"Rua das Hortênsias, 1234"]
[null,"Avenida Sete, 1234",null,"Vitória, ES 40.000-123"]
[null,"Salvador, BA 40.000-321"]
[null,"QUANTIDADE","DETALHES","PREÇO UNITÁRIO","TOTAL DA LINHA"]
[null,2,"Widgets",{"v":29.9,"d":"29.90"},{"$f":"IFERROR(DetalhesDaFatura[[#This Row],[PREÇO UNITÁRIO]]*DetalhesDaFatura[[#This Row],[QUANTIDADE]],\"\")","v":{"v":59.8,"d":"59.80"}}]
[null,5,"Lavadoras",{"v":19.9,"d":"19.90"},{"$f":"IFERROR(DetalhesDaFatura[[#This Row],[PREÇO UNITÁRIO]]*DetalhesDaFatura[[#This Row],[QUANTIDADE]],\"\")","v":{"v":99.5,"d":"99.50"}}]
[{"$nulls":4},{"$f":"IFERROR(DetalhesDaFatura[[#This Row],[PREÇO UNITÁRIO]]*DetalhesDaFatura[[#This Row],[QUANTIDADE]],\"\")","v":0}]
[{"$nulls":4},{"$f":"IFERROR(DetalhesDaFatura[[#This Row],[PREÇO UNITÁRIO]]*DetalhesDaFatura[[#This Row],[QUANTIDADE]],\"\")","v":0}]
[{"$nulls":4},{"$f":"IFERROR(DetalhesDaFatura[[#This Row],[PREÇO UNITÁRIO]]*DetalhesDaFatura[[#This Row],[QUANTIDADE]],\"\")","v":0}]
[{"$nulls":4},{"$f":"IFERROR(DetalhesDaFatura[[#This Row],[PREÇO UNITÁRIO]]*DetalhesDaFatura[[#This Row],[QUANTIDADE]],\"\")","v":0}]
[{"$nulls":4},{"$f":"IFERROR(DetalhesDaFatura[[#This Row],[PREÇO UNITÁRIO]]*DetalhesDaFatura[[#This Row],[QUANTIDADE]],\"\")","v":0}]
[{"$nulls":4},{"$f":"IFERROR(DetalhesDaFatura[[#This Row],[PREÇO UNITÁRIO]]*DetalhesDaFatura[[#This Row],[QUANTIDADE]],\"\")","v":0}]
[{"$nulls":4},{"$f":"IFERROR(DetalhesDaFatura[[#This Row],[PREÇO UNITÁRIO]]*DetalhesDaFatura[[#This Row],[QUANTIDADE]],\"\")","v":0}]
[{"$nulls":4},{"$f":"IFERROR(DetalhesDaFatura[[#This Row],[PREÇO UNITÁRIO]]*DetalhesDaFatura[[#This Row],[QUANTIDADE]],\"\")","v":0}]
[{"$nulls":4},{"$f":"IFERROR(DetalhesDaFatura[[#This Row],[PREÇO UNITÁRIO]]*DetalhesDaFatura[[#This Row],[QUANTIDADE]],\"\")","v":0}]
[{"$nulls":4},{"$f":"IFERROR(DetalhesDaFatura[[#This Row],[PREÇO UNITÁRIO]]*DetalhesDaFatura[[#This Row],[QUANTIDADE]],\"\")","v":0}]
[{"$nulls":4},{"$f":"IFERROR(DetalhesDaFatura[[#This Row],[PREÇO UNITÁRIO]]*DetalhesDaFatura[[#This Row],[QUANTIDADE]],\"\")","v":0}]
[{"$nulls":4},{"$f":"IFERROR(DetalhesDaFatura[[#This Row],[PREÇO UNITÁRIO]]*DetalhesDaFatura[[#This Row],[QUANTIDADE]],\"\")","v":0}]
[{"$nulls":4},{"$f":"IFERROR(DetalhesDaFatura[[#This Row],[PREÇO UNITÁRIO]]*DetalhesDaFatura[[#This Row],[QUANTIDADE]],\"\")","v":0}]
[null,"Desconto"]
[null,"Total Líquido",null,null,{"$f":"SUM(DetalhesDaFatura[TOTAL DA LINHA])-E24","v":{"v":159.3,"d":"R$159.30"}}]
[null,"Imposto"]
[null,{"$f":" \"TOTAL \" & \"(\" & REPT(InformaçõesDaEmpresa_AbreviaçãoDaMoeda,LEN(InformaçõesDaEmpresa_AbreviaçãoDaMoeda)>0) & \")\"","v":"TOTAL (BRL)"},null,null,{"$f":"IFERROR(E25+E26, \"\")","v":{"v":159.3,"d":"R$159.30"}}]
[null,"DETALHES DO PAGAMENTO",null,null,"OUTRAS INFORMAÇÕES"]
[null,"Nome do beneficiário:",{"$f":" InformaçõesDaEmpresa_NomeDoBancoDestinatário","v":"Adventure Works"},null,{"$f":"IFERROR(InformaçõesDaEmpresa_Nome,\"\")","v":""}]
[null,"Nome do banco:",{"$f":"InformaçõesDaEmpresa_NomeDoBanco","v":"Woodgrove Bank"},null,{"$f":"IFERROR(\"Telefone: \" & InformaçõesDaEmpresa_Telefone,\"\")","v":"Telefone: (11) 123-456-789"}]
[null,"Endereço do banco:",{"$f":"InformaçõesDaEmpresa_EndereçoDoBanco","v":"Avenida Oceânica, 234, Vitória, ES 40.000-123"},null,{"$f":"IFERROR(\"FAX: \" & InformaçõesDaEmpresa_Fax,\"\")","v":"FAX: (11) 123-456-987"}]
[null,"Número da conta:",{"$f":"InformaçõesDaEmpresa_ContaBancária","v":1234567},null,{"$f":"IFERROR(InformaçõesDaEmpresa_URL,\"\")","v":"Adventure-Works.com"}]
[null,"Código do banco (código SWIFT):",{"$f":"InformaçõesDaEmpresa_NúmeroDoBanco","v":9876543210},null,{"$f":"IFERROR(InformaçõesDaEmpresa_Email,\"\")","v":"Contabilidade@Adventure-Works.com"}]
[null,"Referência de pagamento:",{"$f":"ExibiçãoDoNúmeroDafatura","v":"0005"},null,{"$f":"IFERROR(IF(LEN(Client_PO),\"Contract/PO: \" & Client_PO,\"\"),\"\")","v":""}]
[null,{"$f":"UPPER(\"O pagamento deve ser feito por transferência bancária ou cheque nominal para \" & InformaçõesDaEmpresa_VerificarBeneficiário& \".\")","v":"O PAGAMENTO DEVE SER FEITO POR TRANSFERÊNCIA BANCÁRIA OU CHEQUE NOMINAL PARA ADVENTURE WORKS."}]

{"sheet":"Informações da empresa","index":1,"n_rows":20,"n_cols":5,"rows_kept":20}
[null,"INFORMAÇÕES DA EMPRESA"]
[null,"DETALHES DE FATURAMENTO DA EMPRESA","VALOR",null,"Fatura de cobrança"]
[null,"Nome","Vítor Schmidt"]
[null,"Nome da Empresa","ADVENTURE WORKS"]
[null,"Linha de endereço 1","Rua das Hortênsias, 1234"]
[null,"Linha de endereço 2","Vitória, ES 40.000-123"]
[null,"Linha de endereço 3"]
[null,"Linha de endereço 4"]
[null,"Linha de endereço 5"]
[null,"Telefone","(11) 123-456-789"]
[null,"FAX","(11) 123-456-987"]
[null,"Site","Adventure-Works.com"]
[null,"Email","Contabilidade@Adventure-Works.com"]
[null,"Abreviação da moeda","BRL"]
[null,"Nome do beneficiário da transferência bancária","Adventure Works"]
[null,"Nome do banco","Woodgrove Bank"]
[null,"Endereço do banco","Avenida Oceânica, 234, Vitória, ES 40.000-123"]
[null,"Número da conta",1234567]
[null,"Código do banco (código SWIFT)",9876543210]
[null,"Emitir todos os cheques nominais à ordem de","Adventure Works"]